fUSD/lending_fUSD_20240518
["ID","MTS","AMOUNT","RATE_DAILY","PERIOD"]
[327393960,1716040268616,-500.76,0.00029041,2]
[327393961,1716040268626,-500.0,0.00029041,2]
[327393962,1716040268635,-2250.78,0.00029041,2]
[327393963,1716040268645,-620.98,0.00029041,2]
[327393964,1716040268655,-500.0,0.00029041,2]
[327393965,1716040268665,-500.0,0.00029041,2]
[327393966,1716040268674,-827.43,0.00029041,2]
[327393967,1716040268684,-500.0,0.00029041,2]
[327393968,1716040268695,-1113.89,0.00029041,2]
[327393969,1716040268705,-1491.8,0.00029041,2]
[327393970,1716040268715,-500.0,0.00029041,2]
[327393971,1716040268724,-500.0,0.00029041,2]
[327393972,1716040268734,-500.0,0.00029041,2]
[327393973,1716040268744,-702.42,0.00029041,2]
[327393974,1716040268755,-854.23,0.00029041,2]
[327393975,1716040268765,-728.49,0.00029041,2]
[327393976,1716040268774,-1117.81,0.00029041,2]
[327393977,1716040268784,-500.0,0.00029041,2]
[327393978,1716040268794,-500.0,0.00029041,2]
[327393979,1716040268804,-512.11,0.00029041,2]
[327393980,1716040268814,-520.85,0.00029041,2]
[327393981,1716040268824,-500.0,0.00029041,2]
[327393982,1716040268834,-712.99,0.00029041,2]
[327393983,1716040268844,-500.0,0.00029041,2]
[327393984,1716040268855,-937.76,0.00029041,2]
[327393985,1716040268867,-760.52,0.00029041,2]
[327393986,1716040268878,-500.0,0.00029041,2]
[327393987,1716040268887,-183.51942857,0.00029041,2]
[327393988,1716040268897,-1038.61,0.00029041,2]
[327393989,1716040268907,-500.0,0.00029041,2]
[327393990,1716040268917,-1229.83,0.00029041,2]
[327393991,1716040268927,-500.0,0.00029041,2]
[327393992,1716040268938,-3234.95,0.00029041,2]
[327393993,1716040268949,-1556.91,0.00029041,2]
[327393994,1716040268959,-500.0,0.00029041,2]
[327393995,1716040268968,-740.54,0.00029041,2]
[327393996,1716040268978,-906.41,0.00029041,2]
[327393997,1716040268987,-799.21,0.00029041,2]
[327393998,1716040268997,-603.91,0.00029041,2]
[327393999,1716040269007,-500.0,0.00029041,2]
[327394000,1716040269016,-1371.53,0.00029041,2]
[327394001,1716040269027,-7464.62,0.00029041,2]
[327394002,1716040269036,-4579.7,0.00029041,2]
[327394003,1716040269046,-4120.53,0.00029041,2]
[327394004,1716040269056,-703.41,0.00029041,2]
[327394005,1716040269066,-500.0,0.00029041,2]
[327394006,1716040269075,-500.0,0.00029041,2]
[327394007,1716040269086,-3200.63,0.00029041,2]
[327394008,1716040269095,-5056.19,0.00029041,2]
[327394009,1716040269106,-500.0,0.00029041,2]
[327394010,1716040269117,-500.0,0.00029041,2]
[327394011,1716040269127,-166.211624,0.00029041,7]
[327394012,1716040269137,-1772.22,0.00029041,2]
[327394013,1716040269147,-4278.55,0.00029041,2]
[327394014,1716040269157,-255.5326399,0.00029041,2]
[327394015,1716040269327,-596.82,0.00029041,2]
[327394016,1716040269337,-698.31,0.00029041,2]
[327394017,1716040269347,-2025.92,0.00029041,2]
[327394018,1716040269357,-500.0,0.00029041,2]
[327394019,1716040269366,-500.0,0.00029041,2]
[327394020,1716040269375,-500.0,0.00029314,2]
[327394021,1716040269384,-500.0,0.00029315,2]
[327394022,1716040269394,-500.0,0.00029315,2]
[327394023,1716040269403,-500.0,0.00029315,2]
[327394024,1716040269412,-520.23844121,0.00029315,2]
[327394025,1716040269421,-500.0,0.00029315,2]
[327394026,1716040269431,-500.0,0.00029315,2]
[327394027,1716040269440,-500.0,0.00029315,2]
[327394028,1716040269449,-500.0,0.00029315,2]
[327394029,1716040269459,-500.0,0.00029315,2]
[327394030,1716040269468,-500.0,0.00029315,2]
[327394031,1716040269477,-500.0,0.00029315,2]
[327394032,1716040269487,-595.06626562,0.00029315,2]
[327394033,1716040269498,-500.0,0.00029315,2]
[327394034,1716040269507,-607.7470462,0.00029315,2]
[327394035,1716040269516,-500.0,0.00029315,2]
[327394036,1716040269526,-500.0,0.00029315,2]
[327394037,1716040269535,-507.06,0.00029315,2]
[327394038,1716040269544,-500.0,0.00029315,2]
[327394039,1716040269554,-2059.56,0.00029315,2]
[327394040,1716040269564,-583.83,0.00029315,2]
[327394041,1716040269574,-2875.29,0.00029315,2]
[327394042,1716040269583,-564.42,0.00029315,2]
[327394043,1716040269593,-191.35410744,0.00029315,2]
[327394044,1716040269604,-500.0,0.00029315,2]
[327394045,1716040269613,-500.0,0.00029315,2]
[327394046,1716040269623,-500.0,0.00029315,2]
[327394047,1716040269634,-502.26,0.00029315,2]
[327394048,1716040269644,-522.68,0.00029315,2]
[327394049,1716040269654,-2660.98,0.00029315,2]
[327394050,1716040269663,-500.0,0.00029315,2]
[327394051,1716040269673,-189.51761649,0.00029315,2]
[327394052,1716040269683,-500.0,0.00029315,2]
[327394053,1716040269693,-500.0,0.00029315,2]
[327394054,1716040269702,-1098.65,0.00029315,2]
[327394055,1716040269712,-500.0,0.00029315,2]
[327394056,1716040269722,-500.0,0.00029315,2]
[327394057,1716040269731,-670.06,0.00029315,2]
[327394058,1716040269741,-500.0,0.00029315,2]
[327394059,1716040269753,-526.97,0.00029315,2]
[327394060,1716040269763,-500.0,0.00029315,2]
[327394061,1716040269772,-1180.45,0.00029315,2]
[327394062,1716040269782,-2140.28,0.00029315,2]
[327394063,1716040269792,-500.0,0.00029315,2]
[327394064,1716040269801,-1792.29,0.00029315,2]
[327394065,1716040269811,-500.0,0.00029315,2]
[327394066,1716040269820,-754.09,0.00029315,2]
[327394067,1716040269830,-500.0,0.00029315,2]
[327394068,1716040269839,-1739.94,0.00029315,2]
[327394069,1716040269849,-500.0,0.00029315,2]
[327394070,1716040269859,-500.0,0.00029315,2]
[327394071,1716040269870,-2203.95,0.00029315,2]
[327394072,1716040269880,-500.0,0.00029315,2]
[327394073,1716040269890,-500.0,0.00029315,2]
[327394074,1716040269900,-500.0,0.00029315,2]
[327394075,1716040269910,-500.0,0.00029315,2]
[327394076,1716040269920,-500.0,0.00029315,2]
[327394077,1716040269930,-500.0,0.00029315,2]
[327394078,1716040269940,-626.93,0.00029315,2]
[327394079,1716040269951,-500.0,0.00029315,2]
[327394080,1716040269960,-500.0,0.00029315,2]
[327394081,1716040269971,-534.91036032,0.00029315,2]
[327394082,1716040269981,-500.0,0.00029315,2]
[327394083,1716040269991,-500.0,0.00029315,2]
[327394084,1716040270002,-2589.11,0.00029315,2]
[327394085,1716040270012,-2196.61,0.00029315,2]
[327394086,1716040270021,-843.12,0.00029315,2]
[327394087,1716040270032,-1927.98,0.00029315,2]
[327394088,1716040270041,-461.31240689,0.00029315,2]
[327394089,1716040270051,-500.0,0.00029315,2]
[327394090,1716040270060,-500.0,0.00029315,2]
[327394091,1716040270070,-2339.68,0.00029315,2]
[327394092,1716040270079,-500.0,0.00029315,2]
[327394093,1716040270089,-500.0,0.00029315,2]
[327394094,1716040270099,-500.0,0.00029315,2]
[327394095,1716040270108,-952.74,0.00029315,2]
[327394096,1716040270118,-500.0,0.00029315,2]
[327394097,1716040270127,-700.22,0.00029315,2]
[327394098,1716040270137,-281.07234108,0.00029315,2]
[327394099,1716040270146,-500.0,0.00029315,2]
[327394100,1716040270156,-500.0,0.00029315,2]
[327394101,1716040270166,-500.0,0.00029315,2]
[327394102,1716040270175,-151.0,0.00029315,7]
[327394103,1716040270185,-500.0,0.00029315,2]
[327394104,1716040270195,-500.0,0.00029315,2]
[327394105,1716040270205,-500.0,0.00029315,2]
[327394106,1716040270215,-151.0,0.00029315,7]
[327394107,1716040270224,-1204.38,0.00029315,2]
[327394108,1716040270234,-500.0,0.00029315,2]
[327394109,1716040270244,-578.65,0.00029315,2]
[327394110,1716040270257,-1353.98,0.00029315,2]
[327394111,1716040270267,-500.0,0.00029315,2]
[327394112,1716040270276,-500.0,0.00029315,2]
[327394113,1716040270285,-180.46,0.00029315,2]
[327394114,1716040270295,-500.0,0.00029315,2]
[327394115,1716040270305,-500.0,0.00029315,2]
[327394116,1716040270314,-500.0,0.00029315,2]
[327394117,1716040270324,-500.0,0.00029315,2]
[327394118,1716040270334,-1233.38,0.00029315,2]
[327394119,1716040270344,-500.0,0.00029315,2]
[327394120,1716040270354,-647.86,0.00029315,2]
[327394121,1716040270363,-500.0,0.00029315,2]
[327394122,1716040270372,-3001.93,0.00029315,2]
[327394123,1716040270382,-500.0,0.00029315,2]
[327394124,1716040270391,-1093.23,0.00029315,2]
[327394125,1716040270401,-500.0,0.00029315,2]
[327394126,1716040270411,-544.14,0.00029315,2]
[327394127,1716040270421,-500.0,0.00029315,2]
[327394128,1716040270430,-500.0,0.00029315,2]
[327394129,1716040270440,-1402.06,0.00029315,2]
[327394130,1716040270450,-959.13,0.00029315,2]
[327394131,1716040270459,-500.0,0.00029315,2]
[327394132,1716040270469,-500.0,0.00029315,2]
[327394133,1716040270479,-500.0,0.00029315,2]
[327394134,1716040270489,-500.0,0.00029315,2]
[327394135,1716040270500,-500.0,0.00029315,2]
[327394136,1716040270510,-500.0,0.00029315,2]
[327394137,1716040270520,-500.0,0.00029315,2]
[327394138,1716040270531,-3017.04,0.00029315,2]
[327394139,1716040270541,-500.0,0.00029315,2]
[327394140,1716040270550,-533.05,0.00029315,2]
[327394141,1716040270560,-500.0,0.00029315,2]
[327394142,1716040270570,-1788.12,0.00029315,2]
[327394143,1716040270580,-980.4,0.00029315,2]
[327394144,1716040270590,-714.06,0.00029315,2]
[327394145,1716040270599,-500.0,0.00029315,2]
[327394146,1716040270609,-500.0,0.00029315,2]
[327394147,1716040270619,-915.26,0.00029315,2]
[327394148,1716040270628,-2281.2,0.00029315,2]
[327394149,1716040270637,-505.01066493,0.00029315,2]
[327394150,1716040270647,-969.27,0.00029315,2]
[327394151,1716040270656,-1067.09,0.00029315,2]
[327394152,1716040270666,-1797.23,0.00029315,2]
[327394153,1716040270676,-1506.83,0.00029315,2]
[327394154,1716040270686,-737.86,0.00029315,2]
[327394155,1716040270696,-625.58,0.00029315,2]
[327394156,1716040270705,-500.0,0.00029315,2]
[327394157,1716040270716,-500.0,0.00029315,2]
[327394158,1716040270725,-500.0,0.00029315,2]
[327394159,1716040270735,-500.0,0.00029315,2]
[327394160,1716040270745,-3336.88,0.00029315,2]
[327394161,1716040270756,-6913.64,0.00029315,2]
[327394162,1716040270765,-709.55,0.00029315,2]
[327394163,1716040270775,-794.08,0.00029315,2]
[327394164,1716040270784,-2267.04,0.00029315,2]
[327394165,1716040270793,-5959.23,0.00029315,2]
[327394166,1716040270803,-500.0,0.00029315,2]
[327394167,1716040270812,-586.84,0.00029315,2]
[327394168,1716040270822,-840.47,0.00029315,2]
[327394169,1716040270832,-2092.24,0.00029315,2]
[327394170,1716040270842,-500.0,0.00029315,2]
[327394171,1716040270851,-594.07,0.00029315,2]
[327394172,1716040270860,-500.0,0.00029315,2]
[327394173,1716040270873,-500.0,0.00029315,2]
[327394174,1716040270882,-732.23,0.00029315,2]
[327394175,1716040270891,-735.33,0.00029315,2]
[327394176,1716040270901,-500.0,0.00029315,2]
[327394177,1716040270911,-302.4,0.00029315,2]
[327394178,1716040270920,-500.0,0.00029315,2]
[327394179,1716040270930,-2493.68,0.00029315,2]
[327394180,1716040270939,-8945.82,0.00029315,2]
[327394181,1716040270949,-500.0,0.00029315,2]
[327394182,1716040270959,-1410.43,0.00029315,2]
[327394183,1716040270968,-500.0,0.00029315,2]
[327394184,1716040270978,-1603.71,0.00029315,2]
[327394185,1716040270987,-500.0,0.00029315,2]
[327394186,1716040270997,-1234.82,0.00029315,2]
[327394187,1716040271010,-500.0,0.00029315,2]
[327394188,1716040271021,-500.0,0.00029315,2]
[327394189,1716040271032,-500.0,0.00029315,2]
[327394190,1716040271043,-964.54,0.00029315,2]
[327394191,1716040271054,-906.95,0.00029315,2]
[327394192,1716040271065,-2869.47,0.00029315,2]
[327394193,1716040271076,-643.98,0.00029315,2]
[327394194,1716040271087,-500.0,0.00029315,2]
[327394195,1716040271097,-739.56,0.00029315,2]
[327394196,1716040271108,-1338.53,0.00029315,2]
[327394197,1716040271118,-500.0,0.00029315,2]
[327394198,1716040271129,-500.0,0.00029315,2]
[327394199,1716040271139,-561.33,0.00029315,2]
[327394200,1716040271149,-702.2,0.00029315,2]
[327394201,1716040271159,-1490.89,0.00029315,2]
[327394202,1716040271169,-1386.7,0.00029315,2]
[327394203,1716040271179,-500.0,0.00029315,2]
[327394204,1716040271188,-500.0,0.00029315,2]
[327394205,1716040271198,-775.1,0.00029315,2]
[327394206,1716040271208,-935.89,0.00029315,2]
[327394207,1716040271218,-545.32,0.00029315,2]
[327394208,1716040271227,-561.56,0.00029315,2]
[327394209,1716040271236,-567.43647291,0.00029315,2]
[327394210,1716040271245,-500.0,0.00029315,2]
[327394211,1716040271261,-500.0,0.00029315,2]
[327394212,1716040271270,-619.78,0.00029315,2]
[327394213,1716040271279,-621.39,0.00029315,2]
[327394214,1716040271288,-500.0,0.00029315,2]
[327394215,1716040271298,-500.0,0.00029315,2]
[327394216,1716040271307,-585.77,0.00029315,2]
[327394217,1716040271316,-3010.58,0.00029315,2]
[327394218,1716040271325,-3560.8,0.00029315,2]
[327394219,1716040271333,-500.0,0.00029315,2]
[327394220,1716040271342,-500.0,0.00029315,2]
[327394221,1716040271350,-599.07,0.00029315,2]
[327394222,1716040271359,-500.0,0.00029315,2]
[327394223,1716040271369,-3063.61,0.00029315,2]
[327394224,1716040271378,-500.0,0.00029315,2]
[327394225,1716040271388,-653.42,0.00029315,2]
[327394226,1716040271397,-814.87,0.00029315,2]
[327394227,1716040271407,-698.86,0.00029315,2]
[327394228,1716040271416,-1099.41,0.00029315,2]
[327394229,1716040271425,-1201.24,0.00029315,2]
[327394230,1716040271435,-500.0,0.00029315,2]
[327394231,1716040271444,-622.78,0.00029315,2]
[327394232,1716040271453,-500.0,0.00029315,2]
[327394233,1716040271463,-674.85,0.00029315,2]
[327394234,1716040271472,-656.56,0.00029315,2]
[327394235,1716040271482,-590.6,0.00029315,2]
[327394236,1716040271492,-500.0,0.00029315,2]
[327394237,1716040271503,-783.59,0.00029315,2]
[327394238,1716040271514,-1179.24,0.00029315,2]
[327394239,1716040271523,-874.12,0.00029315,2]
[327394240,1716040271532,-500.0,0.00029315,2]
[327394241,1716040271541,-500.0,0.00029315,2]
[327394242,1716040271551,-558.78,0.00029315,2]
[327394243,1716040271560,-151.0,0.00029315,7]
[327394244,1716040271570,-2108.16,0.00029315,2]
[327394245,1716040271579,-1661.91,0.00029315,2]
[327394246,1716040271588,-666.13,0.00029315,2]
[327394247,1716040271597,-2781.87,0.00029315,2]
[327394248,1716040271607,-500.0,0.00029315,2]
[327394249,1716040271617,-500.0,0.00029315,2]
[327394250,1716040271626,-893.42,0.00029315,2]
[327394251,1716040271635,-1207.31,0.00029315,2]
[327394252,1716040271645,-500.0,0.00029315,2]
[327394253,1716040271654,-840.57,0.00029315,2]
[327394254,1716040271663,-1041.69,0.00029315,2]
[327394255,1716040271673,-1214.32,0.00029315,2]
[327394256,1716040271682,-1712.9,0.00029315,2]
[327394257,1716040271692,-500.0,0.00029315,2]
[327394258,1716040271702,-2408.0,0.00029315,2]
[327394259,1716040271711,-1126.37,0.00029315,2]
[327394260,1716040271721,-614.77,0.00029315,2]
[327394261,1716040271730,-500.76,0.00029315,2]
[327394262,1716040271740,-500.0,0.00029315,2]
[327394263,1716040271751,-2250.78,0.00029315,2]
[327394264,1716040271761,-620.98,0.00029315,2]
[327394265,1716040271770,-500.0,0.00029315,2]
[327394266,1716040271780,-500.0,0.00029315,2]
[327394267,1716040271789,-827.43,0.00029315,2]
[327394268,1716040271799,-404.58181567,0.00029315,2]
[327394269,1716040271808,-1113.89,0.00029315,2]
[327394270,1716040271819,-1491.8,0.00029315,2]
[327394271,1716040271829,-500.0,0.00029315,2]
[327394272,1716040271838,-500.0,0.00029315,2]
[327394273,1716040271847,-500.0,0.00029315,2]
[327394274,1716040271857,-702.42,0.00029315,2]
[327394275,1716040271869,-854.23,0.00029315,2]
[327394276,1716040271881,-728.49,0.00029315,2]
[327394277,1716040271890,-1117.81,0.00029315,2]
[327394278,1716040271899,-500.0,0.00029315,2]
[327394279,1716040271910,-500.0,0.00029315,2]
[327394280,1716040271919,-512.11,0.00029315,2]
[327394281,1716040271929,-520.85,0.00029315,2]
[327394282,1716040271938,-500.0,0.00029315,2]
[327394283,1716040271949,-712.99,0.00029315,2]
[327394284,1716040271959,-500.0,0.00029315,2]
[327394285,1716040271969,-937.76,0.00029315,2]
[327394286,1716040271978,-760.52,0.00029315,2]
[327394287,1716040271987,-500.0,0.00029315,2]
[327394288,1716040271996,-1038.61,0.00029315,2]
[327394289,1716040272010,-500.0,0.00029315,2]
[327394290,1716040272019,-1229.83,0.00029315,2]
[327394291,1716040272027,-500.0,0.00029315,2]
[327394292,1716040272036,-3234.95,0.00029315,2]
[327394293,1716040272046,-1556.91,0.00029315,2]
[327394294,1716040272055,-500.0,0.00029315,2]
[327394295,1716040272064,-740.54,0.00029315,2]
[327394296,1716040272073,-906.41,0.00029315,2]
[327394297,1716040272083,-799.21,0.00029315,2]
[327394298,1716040272092,-603.91,0.00029315,2]
[327394299,1716040272102,-500.0,0.00029315,2]
[327394300,1716040272111,-1371.53,0.00029315,2]
[327394301,1716040272120,-7464.62,0.00029315,2]
[327394302,1716040272129,-4579.7,0.00029315,2]
[327394303,1716040272138,-4120.53,0.00029315,2]
[327394304,1716040272148,-703.41,0.00029315,2]
[327394305,1716040272156,-433.91912415,0.00029315,2]
[327394306,1716040272165,-500.0,0.00029315,2]
[327394307,1716040272174,-3200.63,0.00029315,2]
[327394308,1716040272184,-5056.19,0.00029315,2]
[327394309,1716040272193,-500.0,0.00029315,2]
[327394310,1716040272202,-500.0,0.00029315,2]
[327394311,1716040272211,-1772.22,0.00029315,2]
[327394312,1716040272221,-4278.55,0.00029315,2]
[327394313,1716040272230,-596.82,0.00029315,2]
[327394314,1716040272239,-698.31,0.00029315,2]
[327394315,1716040272248,-2025.92,0.00029315,2]
[327394316,1716040272259,-500.0,0.00029315,2]
[327394317,1716040272269,-500.0,0.00029315,2]
[327394318,1716040272277,-6907.72,0.00029588,2]
[327394319,1716040272287,-641.91,0.00029588,2]
[327394320,1716040272296,-756.58,0.00029588,2]
[327394321,1716040272306,-10415.31,0.00029588,2]
[327394322,1716040272315,-635.73,0.00029588,2]
[327394323,1716040272324,-500.0,0.00029589,2]
[327394324,1716040272333,-500.0,0.00029589,2]
[327394325,1716040272342,-500.0,0.00029589,2]
[327394326,1716040272352,-500.0,0.00029589,2]
[327394327,1716040272362,-500.0,0.00029589,2]
[327394328,1716040272371,-500.0,0.00029589,2]
[327394329,1716040272380,-500.0,0.00029589,2]
[327394330,1716040272390,-500.0,0.00029589,2]
[327394331,1716040272399,-500.0,0.00029589,2]
[327394332,1716040272409,-500.0,0.00029589,2]
[327394333,1716040272418,-500.0,0.00029589,2]
[327394334,1716040272427,-500.0,0.00029589,2]
[327394335,1716040272436,-559.08552313,0.00029589,2]
[327394336,1716040272445,-507.06,0.00029589,2]
[327394337,1716040272454,-500.0,0.00029589,2]
[327394338,1716040272464,-2059.56,0.00029589,2]
[327394339,1716040272473,-583.83,0.00029589,2]
[327394340,1716040272482,-2875.29,0.00029589,2]
[327394341,1716040272491,-564.42,0.00029589,2]
[327394342,1716040272501,-500.0,0.00029589,2]
[327394343,1716040272511,-500.0,0.00029589,2]
[327394344,1716040272520,-413.84850065,0.00029589,2]
[327394345,1716040272529,-502.26,0.00029589,2]
[327394346,1716040272539,-522.68,0.00029589,2]
[327394347,1716040272548,-2660.98,0.00029589,2]
[327394348,1716040272558,-500.0,0.00029589,2]
[327394349,1716040272567,-544.82622537,0.00029589,2]
[327394350,1716040272577,-500.0,0.00029589,2]
[327394351,1716040272586,-1098.65,0.00029589,2]
[327394352,1716040272595,-500.0,0.00029589,2]
[327394353,1716040272604,-500.0,0.00029589,2]
[327394354,1716040272614,-670.06,0.00029589,2]
[327394355,1716040272624,-500.0,0.00029589,2]
[327394356,1716040272633,-526.97,0.00029589,2]
[327394357,1716040272795,-500.0,0.00029589,2]
[327394358,1716040272806,-1180.45,0.00029589,2]
[327394359,1716040272816,-2140.28,0.00029589,2]
[327394360,1716040272825,-500.0,0.00029589,2]
[327394361,1716040272835,-1792.29,0.00029589,2]
[327394362,1716040272844,-500.0,0.00029589,2]
[327394363,1716040272854,-754.09,0.00029589,2]
[327394364,1716040272864,-500.0,0.00029589,2]
[327394365,1716040272877,-1739.94,0.00029589,2]
[327394366,1716040272886,-500.0,0.00029589,2]
[327394367,1716040272895,-500.0,0.00029589,2]
[327394368,1716040272904,-2203.95,0.00029589,2]
[327394369,1716040272914,-500.0,0.00029589,2]
[327394370,1716040272924,-500.0,0.00029589,2]
[327394371,1716040272934,-500.0,0.00029589,2]
[327394372,1716040272943,-500.0,0.00029589,2]
[327394373,1716040272955,-500.0,0.00029589,2]
[327394374,1716040272965,-500.0,0.00029589,2]
[327394375,1716040272974,-626.93,0.00029589,2]
[327394376,1716040272984,-500.0,0.00029589,2]
[327394377,1716040272994,-500.0,0.00029589,2]
[327394378,1716040273003,-500.0,0.00029589,2]
[327394379,1716040273012,-500.0,0.00029589,2]
[327394380,1716040273021,-2589.11,0.00029589,2]
[327394381,1716040273030,-2196.61,0.00029589,2]
[327394382,1716040273039,-843.12,0.00029589,2]
[327394383,1716040273049,-1927.98,0.00029589,2]
[327394384,1716040273059,-500.0,0.00029589,2]
[327394385,1716040273068,-151.0,0.00029589,7]
[327394386,1716040273078,-151.0,0.00029589,7]
[327394387,1716040273087,-151.0,0.00029589,7]
[327394388,1716040273097,-151.0,0.00029589,7]
[327394389,1716040273106,-500.0,0.00029589,2]
[327394390,1716040273115,-2339.68,0.00029589,2]
[327394391,1716040273124,-356.68125764,0.00029589,2]
[327394392,1716040273135,-151.0,0.00029589,7]
[327394393,1716040273144,-151.0,0.00029589,7]
[327394394,1716040273154,-500.0,0.00029589,2]
[327394395,1716040273164,-151.0,0.00029589,7]
[327394396,1716040273173,-500.0,0.00029589,2]
[327394397,1716040273183,-952.74,0.00029589,2]
[327394398,1716040273192,-500.0,0.00029589,2]
[327394399,1716040273201,-700.22,0.00029589,2]
[327394400,1716040273211,-500.0,0.00029589,2]
[327394401,1716040273220,-506.75366811,0.00029589,2]
[327394402,1716040273229,-500.0,0.00029589,2]
[327394403,1716040273238,-500.0,0.00029589,2]
[327394404,1716040273248,-500.0,0.00029589,2]
[327394405,1716040273259,-500.0,0.00029589,2]
[327394406,1716040273269,-1204.38,0.00029589,2]
[327394407,1716040273278,-500.0,0.00029589,2]
[327394408,1716040273287,-578.65,0.00029589,2]
[327394409,1716040273296,-1353.98,0.00029589,2]
[327394410,1716040273306,-500.0,0.00029589,2]
[327394411,1716040273316,-500.0,0.00029589,2]
[327394412,1716040273325,-180.46,0.00029589,2]
[327394413,1716040273335,-522.80904584,0.00029589,2]
[327394414,1716040273344,-500.0,0.00029589,2]
[327394415,1716040273353,-500.0,0.00029589,2]
[327394416,1716040273363,-500.0,0.00029589,2]
[327394417,1716040273372,-1233.38,0.00029589,2]
[327394418,1716040273382,-500.0,0.00029589,2]
[327394419,1716040273391,-647.86,0.00029589,2]
[327394420,1716040273400,-500.0,0.00029589,2]
[327394421,1716040273409,-3001.93,0.00029589,2]
[327394422,1716040273419,-500.0,0.00029589,2]
[327394423,1716040273428,-1093.23,0.00029589,2]
[327394424,1716040273437,-500.0,0.00029589,2]
[327394425,1716040273446,-544.14,0.00029589,2]
[327394426,1716040273455,-151.0,0.00029589,7]
[327394427,1716040273465,-500.0,0.00029589,2]
[327394428,1716040273474,-269.429249,0.00029589,7]
[327394429,1716040273483,-298.26531828,0.00029589,2]
[327394430,1716040273492,-1402.06,0.00029589,2]
[327394431,1716040273501,-959.13,0.00029589,2]
[327394432,1716040273512,-500.0,0.00029589,2]
[327394433,1716040273521,-500.0,0.00029589,2]
[327394434,1716040273531,-500.0,0.00029589,2]
[327394435,1716040273540,-500.0,0.00029589,2]
[327394436,1716040273549,-500.0,0.00029589,2]
[327394437,1716040273559,-500.0,0.00029589,2]
[327394438,1716040273569,-500.0,0.00029589,2]
[327394439,1716040273579,-3017.04,0.00029589,2]
[327394440,1716040273588,-255.15121678,0.00029589,2]
[327394441,1716040273597,-533.05,0.00029589,2]
[327394442,1716040273606,-500.0,0.00029589,2]
[327394443,1716040273616,-1788.12,0.00029589,2]
[327394444,1716040273625,-980.4,0.00029589,2]
[327394445,1716040273635,-714.06,0.00029589,2]
[327394446,1716040273644,-500.0,0.00029589,2]
[327394447,1716040273654,-500.0,0.00029589,2]
[327394448,1716040273663,-249.7994,0.00029589,7]
[327394449,1716040273672,-915.26,0.00029589,2]
[327394450,1716040273682,-2281.2,0.00029589,2]
[327394451,1716040273691,-249.7994,0.00029589,7]
[327394452,1716040273701,-969.27,0.00029589,2]
[327394453,1716040273711,-1067.09,0.00029589,2]
[327394454,1716040273720,-1797.23,0.00029589,2]
[327394455,1716040273730,-1506.83,0.00029589,2]
[327394456,1716040273739,-737.86,0.00029589,2]
[327394457,1716040273748,-625.58,0.00029589,2]
[327394458,1716040273769,-500.0,0.00029589,2]
[327394459,1716040273780,-500.0,0.00029589,2]